fUSD/lending_fUSD_20260510
["ID","MTS","AMOUNT","RATE_DAILY","PERIOD"]
[421984612,1778403924000,-1200.0,9.041e-05,2]
[421984618,1778404019000,-300.0,9.042e-05,2]
[421984617,1778404019000,-300.0,9.042e-05,2]
[421984616,1778404019000,-1101.17566013,9.042e-05,2]
[421984615,1778404019000,-300.0,9.042e-05,2]
[421984614,1778404019000,-300.0,9.042e-05,2]
[421984613,1778404019000,-300.0,9.041e-05,2]
[421984619,1778404020000,-300.0,9.042e-05,2]
[421984620,1778404020000,-300.0,9.042e-05,2]
[421984622,1778404020000,-579.49007644,9.042e-05,2]
[421984623,1778404020000,-300.0,9.042e-05,2]
[421984621,1778404020000,-300.0,9.042e-05,2]
[421984624,1778404021000,300.0,9.041e-05,2]
[421984625,1778404032000,-738.85990153,9.042e-05,2]
[421984628,1778404158000,-300.0,9.042e-05,2]
[421984627,1778404158000,-300.0,9.042e-05,2]
[421984634,1778404159000,-300.0,9.042e-05,2]
[421984633,1778404159000,-300.0,9.042e-05,2]
[421984632,1778404159000,-300.0,9.042e-05,2]
[421984631,1778404159000,-300.0,9.042e-05,2]
[421984630,1778404159000,300.0,0.0001,3]
[421984629,1778404159000,-1335.70360155,9.042e-05,2]
[421984636,1778404160000,-300.0,9.042e-05,2]
[421984635,1778404160000,-300.0,9.042e-05,2]
[421984637,1778404160000,-300.0,9.042e-05,2]
[421984641,1778404160000,150.0,8.59e-05,2]
[421984638,1778404160000,-300.0,9.042e-05,2]
[421984642,1778404160000,-300.0,9.042e-05,2]
[421984639,1778404160000,500.0,8.944e-05,2]
[421984640,1778404160000,-300.0,9.042e-05,2]
[421984644,1778404201000,1200.0,9.041e-05,2]
[421984643,1778404201000,300.0,9.041e-05,2]
[421984658,1778404231000,-257.8752,9.042e-05,2]
[421984657,1778404231000,-2424.07895351,9.042e-05,2]
[421984656,1778404231000,-2993.88054873,9.042e-05,2]
[421984693,1778404232000,-500.0,9.714e-05,2]
[421984688,1778404232000,-500.0,9.714e-05,2]
[421984687,1778404232000,-500.0,9.714e-05,2]
[421984689,1778404232000,-500.35069752,9.714e-05,2]
[421984690,1778404232000,-500.0,9.714e-05,2]
[421984695,1778404232000,-500.0,9.714e-05,2]
[421984694,1778404232000,-500.0,9.714e-05,2]
[421984691,1778404232000,-236.27868654,9.714e-05,2]
[421984686,1778404232000,-500.0,9.714e-05,2]
[421984697,1778404232000,-500.0,9.714e-05,2]
[421984701,1778404232000,-500.0,9.714e-05,2]
[421984699,1778404232000,-500.0,9.714e-05,2]
[421984700,1778404232000,-500.0,9.714e-05,2]
[421984683,1778404232000,-499.99,9.714e-05,2]
[421984705,1778404232000,-500.0,9.714e-05,2]
[421984704,1778404232000,-500.0,9.714e-05,2]
[421984703,1778404232000,-500.0,9.714e-05,2]
[421984702,1778404232000,-500.0,9.714e-05,2]
[421984707,1778404232000,-500.0,9.714e-05,2]
[421984706,1778404232000,-500.0,9.714e-05,2]
[421984709,1778404232000,-500.0,9.714e-05,2]
[421984698,1778404232000,-500.0,9.714e-05,2]
[421984684,1778404232000,-836.44,9.714e-05,2]
[421984680,1778404232000,-26864.39,9.714e-05,2]
[421984678,1778404232000,-1684.86,9.714e-05,2]
[421984708,1778404232000,-500.0,9.714e-05,2]
[421984659,1778404232000,-655.85593076,9.042e-05,2]
[421984660,1778404232000,-252.80804943,9.042e-05,2]
[421984661,1778404232000,-24854.26205589,9.042e-05,2]
[421984663,1778404232000,-150.0,9.132e-05,2]
[421984669,1778404232000,-856.38086438,9.615e-05,2]
[421984665,1778404232000,-250.0,9.222e-05,2]
[421984662,1778404232000,-250.0,9.087e-05,2]
[421984666,1778404232000,-150.0,9.312e-05,2]
[421984670,1778404232000,-1282.329,9.615e-05,2]
[421984681,1778404232000,-9999.99,9.714e-05,2]
[421984668,1778404232000,-1416500.9464,9.614e-05,2]
[421984667,1778404232000,-150.0,9.403e-05,2]
[421984672,1778404232000,-856.38086436,9.665e-05,2]
[421984671,1778404232000,-2500.0,9.615e-05,2]
[421984674,1778404232000,-150.0,9.713e-05,2]
[421984675,1778404232000,-250.0,9.713e-05,2]
[421984676,1778404232000,-856.38086436,9.714e-05,2]
[421984673,1778404232000,-150.0,9.7e-05,2]
[421984677,1778404232000,-325.2,9.714e-05,2]
[421984679,1778404232000,-2322.42,9.714e-05,2]
[421984682,1778404232000,-24999.99,9.714e-05,2]
[421984664,1778404232000,-150.0,9.222e-05,2]
[421984710,1778404232000,-500.0,9.714e-05,2]
[421984741,1778404232000,-500.0,9.714e-05,2]
[421984712,1778404232000,-500.0,9.714e-05,2]
[421984742,1778404232000,-500.0,9.714e-05,2]
[421984740,1778404232000,-500.0,9.714e-05,2]
[421984744,1778404232000,-500.0,9.714e-05,2]
[421984739,1778404232000,-500.0,9.714e-05,2]
[421984743,1778404232000,-500.0,9.714e-05,2]
[421984711,1778404232000,-500.0,9.714e-05,2]
[421984746,1778404232000,-500.0,9.714e-05,2]
[421984745,1778404232000,-500.0,9.714e-05,2]
[421984748,1778404232000,-500.0,9.714e-05,2]
[421984749,1778404232000,-500.0,9.714e-05,2]
[421984738,1778404232000,-500.0,9.714e-05,2]
[421984750,1778404232000,-500.0,9.714e-05,2]
[421984755,1778404232000,-500.0,9.714e-05,2]
[421984753,1778404232000,-500.0,9.714e-05,2]
[421984752,1778404232000,-500.0,9.714e-05,2]
[421984754,1778404232000,-500.0,9.714e-05,2]
[421984756,1778404232000,-500.0,9.714e-05,2]
[421984758,1778404232000,-500.0,9.714e-05,2]
[421984759,1778404232000,-500.0,9.714e-05,2]
[421984757,1778404232000,-500.0,9.714e-05,2]
[421984760,1778404232000,-500.0,9.714e-05,2]
[421984761,1778404232000,-500.0,9.714e-05,2]
[421984751,1778404232000,-500.0,9.714e-05,2]
[421984737,1778404232000,-369.15187014,9.714e-05,2]
[421984747,1778404232000,-500.0,9.714e-05,2]
[421984733,1778404232000,-500.0,9.714e-05,2]
[421984714,1778404232000,-500.0,9.714e-05,2]
[421984713,1778404232000,-500.0,9.714e-05,2]
[421984715,1778404232000,-500.0,9.714e-05,2]
[421984736,1778404232000,-500.0,9.714e-05,2]
[421984717,1778404232000,-500.0,9.714e-05,2]
[421984720,1778404232000,-500.0,9.714e-05,2]
[421984718,1778404232000,-500.0,9.714e-05,2]
[421984719,1778404232000,-500.0,9.714e-05,2]
[421984721,1778404232000,-500.0,9.714e-05,2]
[421984722,1778404232000,-500.0,9.714e-05,2]
[421984723,1778404232000,-500.0,9.714e-05,2]
[421984716,1778404232000,-500.0,9.714e-05,2]
[421984726,1778404232000,-500.0,9.714e-05,2]
[421984724,1778404232000,-500.0,9.714e-05,2]
[421984730,1778404232000,-584.63666427,9.714e-05,2]
[421984729,1778404232000,-500.0,9.714e-05,2]
[421984731,1778404232000,-500.0,9.714e-05,2]
[421984732,1778404232000,-500.0,9.714e-05,2]
[421984735,1778404232000,-500.0,9.714e-05,2]
[421984728,1778404232000,-500.0,9.714e-05,2]
[421984734,1778404232000,-555.06116698,9.714e-05,2]
[421984725,1778404232000,-500.0,9.714e-05,2]
[421984727,1778404232000,-500.0,9.714e-05,2]
[421984772,1778404233000,-349.1705878,9.714e-05,2]
[421984777,1778404233000,-4715.77286254,9.715e-05,2]
[421984776,1778404233000,-270677.3916519,9.715e-05,2]
[421984775,1778404233000,-690.56720425,9.715e-05,2]
[421984774,1778404233000,-1877.67502266,9.715e-05,2]
[421984773,1778404233000,-213.29267257,9.715e-05,2]
[421984778,1778404233000,-12597.75208735,9.715e-05,2]
[421984769,1778404233000,-351.96721685,9.714e-05,2]
[421984764,1778404233000,-500.0,9.714e-05,2]
[421984771,1778404233000,-500.0,9.714e-05,2]
[421984768,1778404233000,-500.0,9.714e-05,2]
[421984766,1778404233000,-500.0,9.714e-05,2]
[421984763,1778404233000,-500.0,9.714e-05,2]
[421984765,1778404233000,-500.0,9.714e-05,2]
[421984767,1778404233000,-500.0,9.714e-05,2]
[421984762,1778404233000,-500.0,9.714e-05,2]
[421984770,1778404233000,-210.00836604,9.714e-05,2]
[421984781,1778404233000,-166.90746062,9.766e-05,2]
[421984785,1778404233000,-342.22625077,9.814e-05,2]
[421984779,1778404233000,-500.0,9.715e-05,2]
[421984780,1778404233000,-3299.5209759,9.737e-05,2]
[421984798,1778404233000,-14244.31336445,9.896e-05,2]
[421984797,1778404233000,-150.99,9.865e-05,2]
[421984792,1778404233000,-500.0,9.814e-05,2]
[421984794,1778404233000,-500.0,9.814e-05,2]
[421984793,1778404233000,-294.85393627,9.814e-05,2]
[421984787,1778404233000,-500.0,9.814e-05,2]
[421984795,1778404233000,-500.0,9.814e-05,2]
[421984790,1778404233000,-500.0,9.814e-05,2]
[421984789,1778404233000,-500.0,9.814e-05,2]
[421984796,1778404233000,-3490.27,9.865e-05,2]
[421984782,1778404233000,-166.90746061,9.766e-05,2]
[421984788,1778404233000,-500.0,9.814e-05,2]
[421984786,1778404233000,-506.02450301,9.814e-05,2]
[421984784,1778404233000,-500.0,9.814e-05,2]
[421984783,1778404233000,-500.0,9.814e-05,2]
[421984791,1778404233000,-500.0,9.814e-05,2]
[421984800,1778404238000,-26483.85920591,9.896e-05,2]
[421984801,1778404238000,-380.52932165,9.896e-05,2]
[421984802,1778404238000,-4273.39387554,9.896e-05,2]
[421984803,1778404238000,-901.39971266,9.896e-05,2]
[421984884,1778404240000,-227.77322313,0.00010086,2]
[421984882,1778404240000,-2000.0,0.00010079,2]
[421984886,1778404240000,-500.0,0.00010262,2]
[421984885,1778404240000,-440.99,0.00010196,2]
[421984887,1778404240000,-1401.39,0.00010278,2]
[421984889,1778404240000,-2000.0,0.00010305,2]
[421984890,1778404240000,-164.09,0.00010338,2]
[421984888,1778404240000,-175.51,0.00010295,2]
[421984894,1778404240000,-255.0,0.00010685,2]
[421984891,1778404240000,-150.0,0.00010491,2]
[421984893,1778404240000,-500.0,0.00010536,2]
[421984895,1778404240000,-174165.09696323,0.000107,2]
[421984905,1778404240000,-246.00983605,0.00011099,2]
[421984883,1778404240000,-6903.9585,0.00010079,2]
[421984896,1778404240000,-1401.39,0.00010779,2]
[421984901,1778404240000,-1401.39,0.0001103,2]
[421984892,1778404240000,-1401.39,0.00010529,2]
[421984881,1778404240000,-628.8294198,0.00010028,2]
[421984873,1778404240000,-176.37463384,0.0001,2]
[421984875,1778404240000,-151.0,0.0001,2]
[421984862,1778404240000,-190.8939483,9.896e-05,2]
[421984861,1778404240000,-61786.89608109,9.896e-05,2]
[421984863,1778404240000,-999.99,9.896e-05,2]
[421984865,1778404240000,-212.73,9.936e-05,2]
[421984866,1778404240000,-420.0,9.945e-05,2]
[421984864,1778404240000,-5975.66,9.896e-05,2]
[421984867,1778404240000,-1680.0,9.945e-05,2]
[421984868,1778404240000,-250.0,9.946e-05,2]
[421984880,1778404240000,-1401.39,0.00010027,2]
[421984870,1778404240000,-151.0,0.0001,2]
[421984869,1778404240000,-500.0,9.988e-05,2]
[421984871,1778404240000,-176.37463384,0.0001,2]
[421984872,1778404240000,-176.37463384,0.0001,2]
[421984904,1778404240000,-246.00983605,0.00011099,2]
[421984874,1778404240000,-1112.92988727,0.0001,2]
[421984876,1778404240000,-151.0,0.0001,2]
[421984877,1778404240000,-226.0,0.0001,2]
[421984879,1778404240000,-159.75641833,0.0001,2]
[421984897,1778404240000,-500.0,0.0001081,2]
[421984878,1778404240000,-226.0,0.0001,2]
[421984899,1778404240000,-2351.0,0.0001094,2]
[421984926,1778404240000,-476.484223,0.00012507,2]
[421984930,1778404240000,-500.0,0.00013,2]
[421984923,1778404240000,-164.09,0.00012217,2]
[421984928,1778404240000,-2000.0,0.00012881,2]
[421984925,1778404240000,-231.9,0.00012424,2]
[421984927,1778404240000,-246.00983605,0.00012551,2]
[421984924,1778404240000,-158.24,0.00012329,2]
[421984931,1778404240000,-476.484223,0.00013105,2]
[421984932,1778404240000,-246.00983605,0.00013138,2]
[421984936,1778404240000,-172.113624,0.00013425,2]
[421984937,1778404240000,-1060.090812,0.00013425,2]
[421984939,1778404240000,-150.0,0.00013488,2]
[421984935,1778404240000,-568.554218,0.00013425,2]
[421984934,1778404240000,-1152.0,0.00013237,2]
[421984940,1778404240000,-150.0,0.00013488,2]
[421984898,1778404240000,-587.0,0.0001094,2]
[421984938,1778404240000,-150.0,0.00013488,2]
[421984929,1778404240000,-376.0,0.00012928,2]
[421984922,1778404240000,-2375.0,0.00012034,2]
[421984933,1778404240000,-164.09,0.00013157,2]
[421984921,1778404240000,-823.0,0.00012034,2]
[421984900,1778404240000,-150.0,0.00010959,2]
[421984920,1778404240000,-42927.03024662,0.00012,2]
[421984903,1778404240000,-246.0098361,0.00011099,2]
[421984906,1778404240000,-476.48422309,0.00011099,2]
[421984914,1778404240000,-246.00983605,0.00011377,2]
[421984916,1778404240000,-225.04375716,0.00011632,2]
[421984902,1778404240000,-500.0,0.00011084,2]
[421984915,1778404240000,-2000.0,0.00011593,2]
[421984918,1778404240000,-476.484223,0.00011908,2]
[421984908,1778404240000,-476.484223,0.00011099,2]
[421984907,1778404240000,-476.484223,0.00011099,2]
[421984909,1778404240000,-175.51,0.00011231,2]
[421984910,1778404240000,-157.07,0.00011233,2]
[421984911,1778404240000,-164.09,0.00011278,2]
[421984919,1778404240000,-246.00983605,0.00011964,2]
[421984912,1778404240000,-476.484223,0.0001131,2]
[421984913,1778404240000,-500.0,0.00011358,2]
[421984917,1778404240000,-433.0,0.00011753,2]
[421984981,1778404241000,-200.0,0.00013699,2]
[421984982,1778404241000,-690.3022662,0.00013699,2]
[421984990,1778404241000,-690.3022662,0.00013699,2]
[421984980,1778404241000,-166.66,0.00013699,2]
[421984977,1778404241000,-500.0,0.00013698,2]
[421984942,1778404241000,-150.0,0.00013488,2]
[421984975,1778404241000,-500.0,0.00013698,2]
[421984976,1778404241000,-500.0,0.00013698,2]
[421984974,1778404241000,-500.0,0.00013698,2]
[421984984,1778404241000,-690.3022662,0.00013699,2]
[421984972,1778404241000,-500.0,0.00013698,2]
[421984983,1778404241000,-690.3022662,0.00013699,2]
[421984992,1778404241000,-690.3022662,0.00013699,2]
[421984989,1778404241000,-690.3022662,0.00013699,2]
[421984987,1778404241000,-690.3022662,0.00013699,2]
[421984986,1778404241000,-690.3022662,0.00013699,2]
[421984988,1778404241000,-690.3022662,0.00013699,2]
[421984991,1778404241000,-690.3022662,0.00013699,2]
[421984993,1778404241000,-690.3022662,0.00013699,2]
[421984994,1778404241000,-690.3022662,0.00013699,2]
[421984996,1778404241000,-690.3022662,0.00013699,2]
[421984997,1778404241000,-690.3022662,0.00013699,2]
[421984995,1778404241000,-690.3022662,0.00013699,2]
[421984999,1778404241000,-690.3022662,0.00013699,2]
[421984970,1778404241000,-500.0,0.00013698,2]
[421985000,1778404241000,-690.3022662,0.00013699,2]
[421984985,1778404241000,-690.3022662,0.00013699,2]
[421984973,1778404241000,-500.0,0.00013698,2]
[421984955,1778404241000,-150.0,0.00013692,2]
[421984978,1778404241000,-500.0,0.00013698,2]
[421985002,1778404241000,-690.3022662,0.00013699,2]
[421984941,1778404241000,-150.0,0.00013488,2]
[421984943,1778404241000,-248.94301125,0.00013488,2]
[421984954,1778404241000,-150.0,0.00013668,2]
[421984948,1778404241000,-150.0,0.00013556,2]
[421984946,1778404241000,-150.0,0.00013522,2]
[421984950,1778404241000,-150.0,0.00013608,2]
[421984951,1778404241000,-150.0,0.00013624,2]
[421984945,1778404241000,-1010.43,0.00013517,2]
[421984949,1778404241000,-150.0,0.0001359,2]
[421984944,1778404241000,-295.73985248,0.00013488,2]
[421984952,1778404241000,-150.0,0.00013654,2]
[421984953,1778404241000,-150.0,0.00013658,2]
[421984947,1778404241000,-150.0,0.00013548,2]
[421984956,1778404241000,-479.83735214,0.00013698,2]
[421984957,1778404241000,-500.0,0.00013698,2]
[421984958,1778404241000,-500.0,0.00013698,2]
[421984961,1778404241000,-500.0,0.00013698,2]
[421984965,1778404241000,-551.42,0.00013698,2]
[421984964,1778404241000,-551.42,0.00013698,2]
[421984960,1778404241000,-500.0,0.00013698,2]
[421984962,1778404241000,-500.0,0.00013698,2]
[421984959,1778404241000,-500.0,0.00013698,2]
[421984966,1778404241000,-500.0,0.00013698,2]
[421984963,1778404241000,-551.42,0.00013698,2]
[421984967,1778404241000,-500.0,0.00013698,2]
[421984969,1778404241000,-503.53682658,0.00013698,2]
[421984971,1778404241000,-500.0,0.00013698,2]
[421984998,1778404241000,-690.3022662,0.00013699,2]
[421984968,1778404241000,-520.46694454,0.00013698,2]
[421985003,1778404241000,-690.3022662,0.00013699,2]
[421985035,1778404241000,-690.3022662,0.00013699,2]
[421985039,1778404241000,-690.3022662,0.00013699,2]
[421985034,1778404241000,-690.3022662,0.00013699,2]
[421985036,1778404241000,-690.3022662,0.00013699,2]
[421985038,1778404241000,-690.3022662,0.00013699,2]
[421985037,1778404241000,-690.3022662,0.00013699,2]
[421985042,1778404241000,-690.3022662,0.00013699,2]
[421985044,1778404241000,-690.3022662,0.00013699,2]
[421985054,1778404241000,-670.97380276,0.00013699,2]
[421985043,1778404241000,-690.3022662,0.00013699,2]
[421985045,1778404241000,-670.97380276,0.00013699,2]
[421985046,1778404241000,-670.97380276,0.00013699,2]
[421985051,1778404241000,-670.97380276,0.00013699,2]
[421985040,1778404241000,-690.3022662,0.00013699,2]
[421985047,1778404241000,-670.97380276,0.00013699,2]
[421985050,1778404241000,-670.97380276,0.00013699,2]
[421985049,1778404241000,-670.97380276,0.00013699,2]
[421985048,1778404241000,-670.97380276,0.00013699,2]
[421985053,1778404241000,-670.97380276,0.00013699,2]
[421985056,1778404241000,-670.97380276,0.00013699,2]
[421985055,1778404241000,-670.97380276,0.00013699,2]
[421985057,1778404241000,-670.97380276,0.00013699,2]
[421985058,1778404241000,-670.97380276,0.00013699,2]
[421985059,1778404241000,-670.97380276,0.00013699,2]
[421985060,1778404241000,-670.97380276,0.00013699,2]
[421985062,1778404241000,-670.97380276,0.00013699,2]
[421985061,1778404241000,-670.97380276,0.00013699,2]
[421985001,1778404241000,-690.3022662,0.00013699,2]
[421985052,1778404241000,-670.97380276,0.00013699,2]
[421985033,1778404241000,-690.3022662,0.00013699,2]
[421984979,1778404241000,-500.0,0.00013698,2]
[421985041,1778404241000,-690.3022662,0.00013699,2]
[421985005,1778404241000,-690.3022662,0.00013699,2]
[421985032,1778404241000,-690.3022662,0.00013699,2]
[421985015,1778404241000,-690.3022662,0.00013699,2]
[421985006,1778404241000,-690.3022662,0.00013699,2]
[421985008,1778404241000,-690.3022662,0.00013699,2]
[421985007,1778404241000,-690.3022662,0.00013699,2]
[421985009,1778404241000,-690.3022662,0.00013699,2]
[421985010,1778404241000,-690.3022662,0.00013699,2]
[421985011,1778404241000,-690.3022662,0.00013699,2]
[421985013,1778404241000,-690.3022662,0.00013699,2]
[421985012,1778404241000,-690.3022662,0.00013699,2]
[421985014,1778404241000,-690.3022662,0.00013699,2]
[421985016,1778404241000,-690.3022662,0.00013699,2]
[421985018,1778404241000,-690.3022662,0.00013699,2]
[421985004,1778404241000,-690.3022662,0.00013699,2]
[421985017,1778404241000,-690.3022662,0.00013699,2]
[421985030,1778404241000,-690.3022662,0.00013699,2]
[421985019,1778404241000,-690.3022662,0.00013699,2]
[421985031,1778404241000,-690.3022662,0.00013699,2]
[421985024,1778404241000,-690.3022662,0.00013699,2]
[421985022,1778404241000,-690.3022662,0.00013699,2]
[421985025,1778404241000,-690.3022662,0.00013699,2]
[421985029,1778404241000,-690.3022662,0.00013699,2]
[421985027,1778404241000,-690.3022662,0.00013699,2]
[421985028,1778404241000,-690.3022662,0.00013699,2]
[421985020,1778404241000,-690.3022662,0.00013699,2]
[421985021,1778404241000,-690.3022662,0.00013699,2]
[421985026,1778404241000,-690.3022662,0.00013699,2]
[421985023,1778404241000,-690.3022662,0.00013699,2]
[421985084,1778404242000,-150.0,0.00013907,2]
[421985095,1778404242000,-150.0,0.00014067,2]
[421985089,1778404242000,-150.0,0.00013987,2]
[421985094,1778404242000,-218.86703557,0.00014042,2]
[421985104,1778404242000,-2000.0,0.00014169,2]
[421985105,1778404242000,-150.0,0.00014203,2]
[421985097,1778404242000,-164.09,0.00014097,2]
[421985093,1778404242000,-150.0,0.00014033,2]
[421985096,1778404242000,-150.0,0.00014087,2]
[421985098,1778404242000,-150.0,0.00014101,2]
[421985107,1778404242000,-4388.16895018,0.00014227,2]
[421985102,1778404242000,-150.0,0.00014154,2]
[421985099,1778404242000,-166.66,0.0001411,2]
[421985103,1778404242000,-150.0,0.00014169,2]
[421985101,1778404242000,-150.0,0.00014147,2]
[421985117,1778404242000,-150.0,0.00014339,2]
[421985118,1778404242000,-150.0,0.00014373,2]
[421985109,1778404242000,-166.66,0.00014247,2]
[421985106,1778404242000,-150.0,0.00014207,2]
[421985108,1778404242000,-150.0,0.00014237,2]
[421985087,1778404242000,-150.0,0.00013967,2]
[421985100,1778404242000,-150.0,0.00014135,2]
[421985086,1778404242000,-150.0,0.00013965,2]
[421985072,1778404242000,-150.0,0.00013726,2]
[421985090,1778404242000,-150.0,0.00013987,2]
[421985066,1778404242000,-670.97380276,0.00013699,2]
[421985064,1778404242000,-670.97380276,0.00013699,2]
[421985065,1778404242000,-670.97380276,0.00013699,2]
[421985063,1778404242000,-670.97380276,0.00013699,2]
[421985067,1778404242000,-670.97380276,0.00013699,2]
[421985068,1778404242000,-670.97380276,0.00013699,2]
[421985077,1778404242000,-150.0,0.00013821,2]
[421985069,1778404242000,-670.97380276,0.00013699,2]
[421985070,1778404242000,-476.484223,0.00013703,2]
[421985078,1778404242000,-150.0,0.00013828,2]
[421985071,1778404242000,-246.00983605,0.00013726,2]
[421985088,1778404242000,-166.66,0.00013973,2]
[421985073,1778404242000,-150.0,0.00013727,2]
[421985074,1778404242000,-150.0,0.0001376,2]
[421985076,1778404242000,-150.0,0.00013794,2]
[421985079,1778404242000,-166.66,0.00013836,2]
[421985075,1778404242000,-150.0,0.00013787,2]
[421985081,1778404242000,-150.0,0.00013862,2]
[421985091,1778404242000,-150.0,0.00013999,2]
[421985092,1778404242000,-150.0,0.00014027,2]
[421985082,1778404242000,-150.0,0.00013896,2]
[421985083,1778404242000,-700.0,0.000139,5]
[421985080,1778404242000,-150.0,0.00013847,2]
[421985085,1778404242000,-150.0,0.0001393,2]
[421985110,1778404242000,-150.0,0.00014267,2]
[421985113,1778404242000,-150.0,0.00014305,2]
[421985119,1778404242000,-166.66,0.00014384,2]
[421985115,1778404242000,-150.0,0.0001432,2]
[421985141,1778404242000,-150.0,0.00014714,2]
[421985147,1778404242000,-150.0,0.00014806,2]
[421985146,1778404242000,-1900.0,0.000148,5]
[421985148,1778404242000,-150.0,0.00014816,2]
[421985149,1778404242000,-150.0,0.0001482,2]
[421985150,1778404242000,-150.0,0.0001485,2]
[421985155,1778404242000,-246.00983605,0.000149,2]
[421985151,1778404242000,-150.0,0.00014866,2]
[421985154,1778404242000,-300.0,0.000149,5]
[421985153,1778404242000,-581.24625088,0.000149,2]
[421985156,1778404242000,-150.0,0.00014918,2]
[421985152,1778404242000,-150.0,0.00014884,2]
[421985159,1778404242000,-150.0,0.00014926,2]
[421985160,1778404242000,-150.0,0.00014952,2]
[421985161,1778404242000,-150.0,0.00014986,2]
[421985164,1778404242000,-255.45324773,0.00014986,2]
[421985163,1778404242000,-150.0,0.00014986,2]
[421985165,1778404242000,-205.77084112,0.00014986,2]
[421985111,1778404242000,-150.0,0.00014271,2]
[421985167,1778404242000,-884346.06593464,0.00015,2]
[421985168,1778404242000,-10999.8781,0.00015,2]
[421985169,1778404242000,-638.147,0.00015,2]
[421985170,1778404242000,-508.28615974,0.00015,2]
[421985142,1778404242000,-182.63,0.0001472,2]
[421985140,1778404242000,-1500.0,0.000147,5]
[421985166,1778404242000,-166.93728157,0.00014986,2]
[421985139,1778404242000,-150.0,0.00014687,2]
[421985143,1778404242000,-150.0,0.00014747,2]
[421985116,1778404242000,-150.0,0.00014327,2]
[421985112,1778404242000,-476.484223,0.00014302,2]
[421985114,1778404242000,-246.00983605,0.00014313,2]
[421985121,1778404242000,-150.0,0.00014407,2]
[421985132,1778404242000,-150.0,0.00014578,2]
[421985120,1778404242000,-150.0,0.00014387,2]
[421985131,1778404242000,-150.0,0.00014567,2]
[421985122,1778404242000,-150.0,0.00014441,2]
[421985124,1778404242000,-150.0,0.00014475,2]
[421985125,1778404242000,-150.0,0.00014487,2]
[421985129,1778404242000,-150.0,0.00014544,2]
[421985123,1778404242000,-150.0,0.00014447,2]
[421985127,1778404242000,-150.0,0.00014507,2]
[421985126,1778404242000,-150.0,0.00014487,2]
[421985135,1778404242000,-150.0,0.00014627,2]
[421985136,1778404242000,-150.0,0.00014646,2]
[421985133,1778404242000,-1100.0,0.000146,5]
[421985137,1778404242000,-150.0,0.00014653,2]
[421985145,1778404242000,-150.0,0.00014782,2]
[421985134,1778404242000,-150.0,0.00014612,2]
[421985128,1778404242000,-150.0,0.00014509,2]
[421985130,1778404242000,-1613.0,0.00014561,2]
[421985144,1778404242000,-150.0,0.00014748,2]
[421985138,1778404242000,-150.0,0.0001468,2]
[421985190,1778404243000,-230.13418402,0.00015,2]
[421985188,1778404243000,-158.31098351,0.00013699,2]
[421985189,1778404243000,-151.0,0.00013699,2]
[421985195,1778404244000,2000.0,9.615e-05,2]
[421985196,1778404246000,-476.484223,0.000149,2]
[421985198,1778404246000,-24633.16508631,0.00015,2]
[421985197,1778404246000,-725.82305608,0.00015,2]
[421985201,1778404250000,615.8378,9.615e-05,2]
[421985202,1778404256000,850.849,9.615e-05,2]
[421985203,1778404262000,2500.0,9.615e-05,2]
[421985205,1778404282000,350.0,9.613e-05,2]
[421985204,1778404282000,500.0,9.613e-05,2]
[421985207,1778404283000,500.0,9.613e-05,2]
[421985206,1778404283000,500.0,9.613e-05,2]
[421985208,1778404284000,500.0,9.613e-05,2]
[421985210,1778404284000,500.0,9.613e-05,2]
[421985209,1778404284000,500.0,9.613e-05,2]